Cogmind - Beta 15 @@@ ROGUE MODE // 2025.07.09 @ 23:40:18 Player: naththebg Result: Destroyed by AG-16493 with Assembled Focal Cannon Performance ------------- Evolutions (4) 2000 Regions Visited (11) 2200 Robots Destroyed (113) 565 Value Destroyed (3567) 3567 Prototype IDs (29) 580 Alien Tech Used (0) 0 Bonus (2565) 2565 TOTAL SCORE: 11477 Bonus ------- High Alert Combat Kills 22 Follower Combat Kills 243 Met Imprinter 300 Destroyed Z-Imprinter 1000 Triggered Deep Caves Wall 500 Exposed GOLEM Chamber 500 Cogmind --------- Core Integrity 0/850 Matter 300/300 Energy 100/100 System Corruption 0% Temperature Cool (12) Movement Core (50) Location -6/Deep Caves Parts ------- > --- POWER (1) -------- (None) > --- PROPULSION (4) --- Armored Leg Assembled Alloy Leg > --- UTILITY (6) ------ Improved Cryofiber Web Experimental Heat Sink GOLEM Unit > --- WEAPON (4) ------- (None) > --- INVENTORY (5) ---- Cold Fusion Reactor Peak State ------------ > --- POWER ------------ Zionite Light DM Reactor > --- PROPULSION ------- Armored Leg Multireflex Exoskeleton Zionite Glidesys II > --- UTILITY ---------- Experimental Heat Sink Large Storage Unit Zionite Metafield Generator Weapon Cycler Zionite Weapon Casing Hardened Medium Armor Plating > --- WEAPON ----------- Gatling Laser Plasma Rifle Beamcaster Heavy Ion Cannon > --- INVENTORY -------- Cold Fusion Reactor Cold Fusion Reactor Armored Leg Improved Heavy Armor Plating Storm Laser Heavy Plasma Cannon Improved Grenade Launcher CPS Tube CPS Tube RU-N14's Throwing Claymores RU-N14's Throwing Claymores [Rating: 88] Favorites ----------- Power Cold Fusion Reactor Engine Cooled Ion Engine Reactor Cold Fusion Reactor Propulsion Aluminum Leg Treads Light Treads Leg Aluminum Leg Hover Unit Zionite Glidesys II Flight Unit Improved Flight Unit Utility Heat Sink Device Heat Sink Storage Large Storage Unit Processor Advanced Targeting Computer Hackware Hacking Suite Protection Hardened Medium Armor Plating Weapon Advanced Beam Cannon Energy Gun Beamcaster Energy Cannon Advanced Beam Cannon Launcher Rocket Launcher Special Weapon RU-N14's Throwing Claymores Build | -11 -10 -10 -9 -9 -9 -9 -6 -6 -6 -6 -6 ------- Run | Yrd Mat Min Mat Sto Rec Scr Fac Low Low Zio Dee Slots Evolved 8 | . . . 2 . . . 6 . . . . Power . | . . . . . . . . . . . . Propulsion 2 | . . . 1 . . . 1 . . . . Utility 4 | . . . 1 . . . 3 . . . . Weapon 2 | . . . . . . . 2 . . . . Parts Attached 108 | 6 12 6 17 15 1 1 28 2 . 5 15 Power 10 | 1 1 1 2 1 . . 2 . . . 2 Engine 7 | 1 1 1 2 1 . . 1 . . . . Core . | . . . . . . . . . . . . Reactor 3 | . . . . . . . 1 . . . 2 Propulsion 38 | 2 5 2 9 8 . . 10 . . . 2 Treads 2 | . 1 . 1 . . . . . . . . Leg 34 | 2 4 2 7 8 . . 10 . . . 1 Wheel . | . . . . . . . . . . . . Hover 1 | . . . . . . . . . . . 1 Flight 1 | . . . 1 . . . . . . . . Utility 31 | 1 3 1 3 3 1 1 7 1 . 3 7 Device 17 | . 1 1 1 3 . . 4 1 . 3 3 Storage 5 | 1 1 . 1 . . 1 . . . . 1 Processor 3 | . 1 . 1 . . . 1 . . . . Hackware 1 | . . . . . 1 . . . . . . Protection 5 | . . . . . . . 2 . . . 3 Artifact . | . . . . . . . . . . . . Weapon 29 | 2 3 2 3 3 . . 9 1 . 2 4 Energy Gun 14 | 2 3 2 2 . . . 4 . . 1 . Energy Cannon 8 | . . . 1 3 . . 3 . . . 1 Ballistic Gun . | . . . . . . . . . . . . Ballistic Cannon . | . . . . . . . . . . . . Launcher 3 | . . . . . . . 2 1 . . . Special Weapon 4 | . . . . . . . . . . 1 3 Impact Weapon . | . . . . . . . . . . . . Slashing Weapon . | . . . . . . . . . . . . Piercing Weapon . | . . . . . . . . . . . . Special Melee Weapon . | . . . . . . . . . . . . Unidentified Prototypes 19 | . . . 3 1 . . 4 . . 4 7 Parts Lost 22 | . 2 1 4 . . . 8 . . . 7 Power 2 | . . . 1 . . . 1 . . . . Propulsion 10 | . 1 1 3 . . . 2 . . . 3 Utility 5 | . . . . . . . 1 . . . 4 Weapon 5 | . 1 . . . . . 4 . . . . Highest Loss Streak 7 | . 1 1 2 . . . 7 . . . 3 To Critical Strikes . | . . . . . . . . . . . . Average Backups 10 | 2 7 9 8 10 10 13 12 12 12 11 9 Power 1 | . 1 1 . 1 1 1 1 2 2 2 1 Propulsion 1 | 1 3 3 2 2 2 1 2 2 2 1 . Utility 3 | . . 2 3 4 4 6 4 3 3 2 1 Weapon 2 | . 1 2 1 2 3 3 2 2 2 3 3 Tool/Special . | . . . . . . . . . . . . Unused Backups 13 | . 3 . . . . . 3 2 1 1 3 Power 2 | . . . . . . . 1 . . . 1 Propulsion 3 | . 2 . . . . . 1 . . . . Utility 4 | . . . . . . . . 2 . 1 1 Weapon 3 | . 1 . . . . . 1 . 1 . . Tool/Special 1 | . . . . . . . . . . . 1 Average Slot Usage (%) 94 | . 95 96 98 99 100 100 96 93 93 88 80 Engine 6 | . 14 14 10 11 11 11 3 . . . . Reactor 2 | . . . . . . . 2 6 6 6 5 Leg 26 | . 27 24 31 32 33 33 23 20 20 20 19 Device 17 | . 7 14 14 22 13 11 21 20 20 20 18 Storage 8 | . 14 14 11 11 11 11 6 6 6 6 5 Processor 2 | . 2 . 7 . . . 4 6 6 1 . Hackware 2 | . . . . . 8 11 4 . . . . Protection 2 | . . . . . . . 1 6 6 6 9 Energy Gun 13 | . 28 28 18 1 . . 8 19 19 19 15 Energy Cannon 10 | . . . 3 20 22 22 16 6 6 5 4 Peak Build Rating 88 | 6 8 16 21 20 22 24 73 74 74 85 88 Average Rating 42 | 3 6 13 17 18 20 23 55 73 73 76 72 On Entrance 33 | . 6 8 10 20 20 22 24 73 74 74 75 Naked Turns . | . . . . . . . . . . . . Heaviest Build 76 | 11 20 23 29 29 28 37 65 65 67 76 66 Greatest Support 72 | 20 20 25 30 39 39 39 72 68 68 68 68 Greatest Overweight (x) 2 | . 1 2 1 . . . 1 . . 1 1 Average Overweight (x) . | . . . . . . . . . . . . Largest Inventory Capacity 15 | 8 10 10 10 10 10 15 15 15 15 15 15 Average Capacity 12 | 7 8 10 10 10 10 14 15 15 15 15 14 Most Carried 15 | 6 10 10 10 10 10 15 15 15 15 15 15 Average Carried 11 | 3 7 9 8 9 9 13 13 14 14 13 12 Final Capacity 15 | 8 10 10 10 10 10 15 15 15 15 15 5 Final Carried 15 | 6 10 8 10 10 10 15 15 15 15 15 1 Class Distribution -------------------- 31% | Mutant 17% | Tank 13% | Scavenger-Mutant 13% | Gunner 8% | Commander-Mutant 7% | Scavenger-Gunner 4% | Commander-Gunner 3% | Scavenger-Tank Dominant Class ---------------- Mutant | -10/Materials Mutant | -10/Mines Mutant | -9/Materials Scavenger-Mutant | -9/Storage Mutant | -9/Recycling Commander-Mutant | -9/Scraptown Scavenger-Gunner | -6/Factory Gunner | -6/Lower Caves Gunner | -6/Lower Caves Tank | -6/Zion Tank | -6/Deep Caves Resources | -11 -10 -10 -9 -9 -9 -9 -6 -6 -6 -6 -6 ----------- Run | Yrd Mat Min Mat Sto Rec Scr Fac Low Low Zio Dee Matter Collected 3732 | 182 176 68 219 176 10 10 367 121 33 2190 180 Remotely . | . . . . . . . . . . . . Salvage Created 5665 | . 625 30 1363 1494 484 . 1025 87 18 . 539 Parts 239 | . 35 2 62 72 21 . 29 9 . . 9 Haulers Intercepted 13 | . 2 . 3 5 . . 3 . . . . Recyclers Shooed 11 | . 1 . 5 3 1 . 1 . . . . Parts Field Recycled . | . . . . . . . . . . . . Retrieved Matter . | . . . . . . . . . . . . Parts Self-Destructed 9 | . . . . . . . . 6 3 . . Prevented . | . . . . . . . . . . . . Kills | -11 -10 -10 -9 -9 -9 -9 -6 -6 -6 -6 -6 ------- Run | Yrd Mat Min Mat Sto Rec Scr Fac Low Low Zio Dee Combat Hostiles Destroyed 115 | . 15 2 17 23 3 . 10 5 1 . 39 Guns 37 | . 15 2 15 2 . . 1 . . . 2 Cannons 42 | . . . 2 20 3 . 8 1 . . 8 AOE 34 | . . . . . . . . 4 1 . 29 Classes Destroyed 17 | . 5 1 5 1 . . 2 . . . 3 Worker 1 | . 1 . . . . . . . . . . Builder 2 | . . . 2 . . . . . . . . Tunneler 1 | . . . 1 . . . . . . . . Hauler 13 | . 2 . 3 5 . . 3 . . . . Recycler 11 | . 1 . 5 1 3 . 1 . . . . Operator 2 | . . . 1 1 . . . . . . . Watcher 4 | . . . 2 2 . . . . . . . Swarmer 10 | . 5 . . . . . . 4 1 . . Grunt 42 | . 10 . 14 12 1 . 5 . . . . Duelist 2 | . . . . 1 1 . . . . . . Sentry 15 | . . . 3 10 1 . 1 . . . . Demolisher 2 | . . 2 . . . . . . . . . Hunter 2 | . . . . . . . 2 . . . . Programmer 3 | . . . . . . . 2 1 . . . Assembler 2 | . . . . . . . . . . . 2 Assembled 36 | . . . . . . . . . . . 36 Golem 3 | . . . . . . . . . . . 3 Best Kill Streak 39 | . 5 2 9 4 3 . 7 4 1 . 39 Combat Bots Only 37 | . 5 2 3 4 2 . 5 4 1 . 37 Max Kills in Single Turn 10 | . 2 1 2 1 1 . 1 2 1 . 10 Gunslinging . | . . . . . . . . . . . . Exploded 9 | . . . . . . . . 2 1 . 9 Melee . | . . . . . . . . . . . . Uniques/NPCs Destroyed 1 | . . . . . . . . . . . 1 Z-Imprinter (-6/Deep Caves) Combat | -11 -10 -10 -9 -9 -9 -9 -6 -6 -6 -6 -6 -------- Run | Yrd Mat Min Mat Sto Rec Scr Fac Low Low Zio Dee Hostile Shots Fired 508 | . 81 10 77 63 1 . 115 15 9 . 137 Missed 142 | . 26 2 19 16 1 . 38 7 4 . 29 Hits 366 | . 55 8 58 47 . . 77 8 5 . 108 Melee 4 | . . . . . . . . . . . 4 Projectile 362 | . 55 8 58 47 . . 77 8 5 . 104 AOE 9 | . . 9 . . . . . . . . . Critical Strikes 5 | . . . . . . . 4 . . . 1 Part Disruptions 1 | . . . . . . . . . . . 1 Actively Blocked 1 | . . . . . . . . . . . 1 Damage Taken 7005 | . 550 312 722 587 . . 1193 157 102 . 3382 Core 1319 | . 147 100 74 103 . . 180 . 18 . 697 Absorbed by Shields 176 | . . . . . . . 176 . . . . Redirected to Shielding 158 | . . . . . . . . . . . 158 Regen/Repaired (Parts) 130 | . . . 60 . . . 70 . . . . Core Remaining (%) 52 | 100 . 1 . . . 55 . . . . . Volleys Fired 332 | . 58 8 98 68 12 . 38 4 1 1 44 Largest 4 | . 2 2 2 2 2 . 4 4 1 1 4 Hottest 295 | . 100 125 143 143 136 . 279 295 36 65 295 Shots Fired 692 | . 116 15 188 136 24 . 138 10 1 1 63 Gun 374 | . 116 15 174 7 . . 26 6 . . 30 Cannon 300 | . . . 14 129 24 . 109 2 . 1 21 Launcher 6 | . . . . . . . 3 2 1 . . Special 12 | . . . . . . . . . . . 12 Kinetic . | . . . . . . . . . . . . Thermal 669 | . 116 15 188 136 24 . 130 8 . 1 51 Explosive 16 | . . . . . . . 3 2 1 . 10 Electromagnetic 5 | . . . . . . . 5 . . . . Robot Hit Streak 25 | . 10 4 12 25 17 . 19 4 5 . 14 Robot Miss Streak 5 | . 4 3 4 3 1 . 3 . . . 5 Penetration Max . | . . . . . . . . . . . . Secondary Targets 4 | . 2 . 2 . . . . . . . . Max Gunslinging Chain 1 | . 1 . 1 . . . . . . . . Shots Hit Robots 440 | . 76 7 119 85 17 . 85 3 1 . 47 Core Hits 226 | . 32 3 46 31 9 . 34 6 1 . 64 Critical Kills 1 | . . . . 1 . . . . . . . Critical Parts Destroyed . | . . . . . . . . . . . . Critical Strikes 22 | . 5 . 13 2 . . 1 . . . 1 Burn 20 | . 5 . 13 1 . . 1 . . . . Meltdown 1 | . . . . 1 . . . . . . . Sever 1 | . . . . . . . . . . . 1 Melee Attacks . | . . . . . . . . . . . . Impact . | . . . . . . . . . . . . Slashing . | . . . . . . . . . . . . Piercing . | . . . . . . . . . . . . Sneak Attacks . | . . . . . . . . . . . . Combat Hostiles . | . . . . . . . . . . . . Follow-up Attacks . | . . . . . . . . . . . . Damage Inflicted 13765 | . 988 134 2181 1750 388 . 2043 386 63 . 5832 Guns 4700 | . 970 134 2004 84 . . 225 . . . 1283 Cannons 4549 | . . . 163 1647 358 . 1818 35 . . 528 Explosions 4092 | . . . . . . . . 351 63 . 3678 Melee . | . . . . . . . . . . . . Ramming 81 | . 18 . 14 19 30 . . . . . . Kinetic . | . . . . . . . . . . . . Thermal 9219 | . 970 134 2167 1731 358 . 2013 35 . . 1811 Explosive 4092 | . . . . . . . . 351 63 . 3678 Electromagnetic 30 | . . . . . . . 30 . . . . Impact . | . . . . . . . . . . . . Slashing 343 | . . . . . . . . . . . 343 Piercing . | . . . . . . . . . . . . Highest Corruption 2 | . . . . . . . 1 2 . . . Average Corruption 1 | . . . . . . . 1 1 . . . Corruption Purged 2 | . . . . . . . . 2 . . . Corruption Blocked . | . . . . . . . . . . . . Effects 15 | . . . . . . . 8 7 . . . Message Errors 3 | . . . . . . . . 3 . . . Matter Fused 2 | . . . . . . . 1 1 . . . Heat Flow Errors 2 | . . . . . . . 2 . . . . Energy Discharges 3 | . . . . . . . 1 2 . . . Parts Fused 1 | . . . . . . . 1 . . . . Data Loss (minor) 2 | . . . . . . . 2 . . . . Misfires 1 | . . . . . . . 1 . . . . Alerts 1 | . . . . . . . . 1 . . . Overload Shots . | . . . . . . . . . . . . Overflow Damage 331 | . . . . . . . 32 33 . . 266 Projectiles 96 | . . . . . . . 32 . . . 64 Explosions 235 | . . . . . . . . 33 . . 202 Melee . | . . . . . . . . . . . . Knockbacks . | . . . . . . . . . . . . Impact . | . . . . . . . . . . . . Kinetic . | . . . . . . . . . . . . Secondary . | . . . . . . . . . . . . Self-Inflicted Damage 52 | . . . . . . . . 27 25 . . Shots 2 | . . . . . . . . 1 1 . . Rammed . | . . . . . . . . . . . . Targets Rammed 17 | . 5 . 2 7 3 . . . . . . Kicked 17 | . 5 . 2 7 3 . . . . . . Crushed . | . . . . . . . . . . . . Highest Temperature 400 | . 282 147 159 126 90 . 133 . . . 400 Average Temperature 55 | . 77 69 41 34 35 . 75 . . . 109 Received Heat Transfer 1597 | . 222 . 357 270 . . 300 18 . . 430 Effects 1 | . . . . . . . . . . . 1 Energy Bleed 1 | . . . . . . . . . . . 1 Siege Activations . | . . . . . . . . . . . . Martial Activations 1 | . . . . . . . 1 . . . . Total Turns 10 | . . . . . . . 10 . . . . Longest Duration 10 | . . . . . . . 10 . . . . Shielding Activations . | . . . . . . . . . . . . Robots Disrupted . | . . . . . . . . . . . . Combat Hostiles . | . . . . . . . . . . . . Robots Corrupted . | . . . . . . . . . . . . Combat Hostiles . | . . . . . . . . . . . . Parts Fried . | . . . . . . . . . . . . Impact Corruptions . | . . . . . . . . . . . . Robots Melted 2 | . . . . 1 . . 1 . . . . Combat Hostiles 2 | . . . . 1 . . 1 . . . . Parts Melted 39 | . 5 1 12 12 1 . 8 . . . . Heat Transferred 19148 | . 2983 296 5624 3182 686 . 3470 37 . . 2870 Parts Sabotaged . | . . . . . . . . . . . . Parts Stolen . | . . . . . . . . . . . . Parts Stripped . | . . . . . . . . . . . . Power Chain Reactions . | . . . . . . . . . . . . Alert | -11 -10 -10 -9 -9 -9 -9 -6 -6 -6 -6 -6 ------- Run | Yrd Mat Min Mat Sto Rec Scr Fac Low Low Zio Dee Maximum Alert Level 2 | . 1 . . 2 1 . . . . . . Low Security (%) 84 | 100 83 100 100 29 97 . 100 . . . . Level 1 13 | . 16 . . 57 2 . . . . . . Level 2 2 | . . . . 12 . . . . . . . Level 3 . | . . . . . . . . . . . . Level 4 . | . . . . . . . . . . . . Level 5 . | . . . . . . . . . . . . High Security . | . . . . . . . . . . . . Max Security . | . . . . . . . . . . . . Peak Influence 453 | . 267 91 149 453 211 . 143 . . . . Initial 171 | . . 91 . 57 171 . . . . . . Average 104 | . 114 35 94 276 61 . 29 . . . . Influence Increases 2726 | . 501 65 572 812 172 . 454 120 30 . . Destroy 0b10 Robot/C 1600 | . 300 40 340 460 60 . 280 100 20 . . Destroy 0b10 Robot/NC 185 | . 20 . 70 45 30 . 20 . . . . Destroy Leader 424 | . 64 10 100 154 . . 66 20 10 . . Allied During Kill 38 | . . . . . 6 . 32 . . . . Successful Hack 112 | . 26 . 30 13 16 . 27 . . . . Select Force Hacks 150 | . 30 . . 60 60 . . . . . . Disable Machine 90 | . . 15 15 60 . . . . . . . Destroy Structure 22 | . 1 . 2 5 . . 14 . . . . Lose Combat Pursuer 105 | . 60 . 15 15 . . 15 . . . . Influence Decreases 2726 | . 267 299 436 507 613 . 454 120 30 . . Entered New Map 492 | . . 143 . 79 270 . . . . . . Time Decay 2005 | . 227 146 396 428 343 . 315 120 30 . . Lost Part 121 | . 20 10 40 . . . 51 . . . . Lost Ally 88 | . . . . . . . 88 . . . . Purge Threat 20 | . 20 . . . . . . . . . . Squads Dispatched 15 | . 5 . 4 3 . . 3 . . . . Investigation 8 | . 3 . 2 3 . . . . . . . Extermination 2 | . . . . . . . 2 . . . . Reinforcement 5 | . 2 . 2 . . . 1 . . . . Assault . | . . . . . . . . . . . . Garrison . | . . . . . . . . . . . . Intercept . | . . . . . . . . . . . . Searches Triggered . | . . . . . . . . . . . . Construction Impeded . | . . . . . . . . . . . . Haulers Reinforced 1 | . . . . . . . 1 . . . . Active Scanning Responses . | . . . . . . . . . . . . Cargo Convoy Interrupts . | . . . . . . . . . . . . Stealth | -11 -10 -10 -9 -9 -9 -9 -6 -6 -6 -6 -6 --------- Run | Yrd Mat Min Mat Sto Rec Scr Fac Low Low Zio Dee Distress Signals 7 | . 1 1 2 2 . . 1 . . . . Communications Jammed . | . . . . . . . . . . . . Distress Signals . | . . . . . . . . . . . . Times Spotted 166 | . 25 2 31 24 6 . 14 8 3 . 53 Peak Tracking Total 26 | . 8 2 4 4 4 . 5 4 3 . 26 Tactical Retreats 8 | . 3 . 1 1 . . 1 . . . 2 Traps | -11 -10 -10 -9 -9 -9 -9 -6 -6 -6 -6 -6 ------- Run | Yrd Mat Min Mat Sto Rec Scr Fac Low Low Zio Dee Traps Triggered 5 | . 2 1 . 2 . . . . . . . Indirectly . | . . . . . . . . . . . . Trap Hack Attempts . | . . . . . . . . . . . . Triggered . | . . . . . . . . . . . . Disarmed . | . . . . . . . . . . . . Reprogrammed . | . . . . . . . . . . . . Reused . | . . . . . . . . . . . . Traps Extracted . | . . . . . . . . . . . . Installed . | . . . . . . . . . . . . Triggered . | . . . . . . . . . . . . Machines | -11 -10 -10 -9 -9 -9 -9 -6 -6 -6 -6 -6 ---------- Run | Yrd Mat Min Mat Sto Rec Scr Fac Low Low Zio Dee Machines Disabled 10 | . . 1 1 4 . . . . . . 4 Max in Single Turn 1 | . . 1 1 1 . . . . . . 1 Garrison Access 1 | . . . . 1 . . . . . . . Machines Repaired . | . . . . . . . . . . . . Machines Dismantled . | . . . . . . . . . . . . Machines Sabotaged . | . . . . . . . . . . . . Overloaded Fab Kills . | . . . . . . . . . . . . Hacking | -11 -10 -10 -9 -9 -9 -9 -6 -6 -6 -6 -6 --------- Run | Yrd Mat Min Mat Sto Rec Scr Fac Low Low Zio Dee Machines Accessed 32 | . 4 1 5 10 6 . 4 1 . 1 . Terminals 20 | . 3 . 3 7 4 . 3 . . . . Fabricators . | . . . . . . . . . . . . Repair Stations 3 | . . . 2 . . . 1 . . . . Recycling Units 5 | . 1 . . 2 2 . . . . . . Scanalyzers . | . . . . . . . . . . . . Garrison Access 1 | . . . . 1 . . . . . . . Total Hacks 88 | . 9 1 13 32 16 . 13 1 . 3 . Successful 55 | . 6 1 8 16 12 . 8 1 . 3 . Failed 33 | . 3 . 5 16 4 . 5 . . . . Catastrophic 2 | . . . . 2 . . . . . . . Database Lockouts . | . . . . . . . . . . . . Manual 26 | . 1 . . 9 10 . 2 . . 4 . Terminals 58 | . 7 . 7 22 12 . 10 . . . . Fabricators . | . . . . . . . . . . . . Repair Stations 9 | . . . 6 . . . 3 . . . . Recycling Units 15 | . 2 . . 9 4 . . . . . . Scanalyzers . | . . . . . . . . . . . . Garrison Access 1 | . . . . 1 . . . . . . . Terminal Hacks 35 | . 4 1 5 10 6 . 5 1 . 3 . Record 1 | . . . . . . . 1 . . . . Part Schematic 3 | . . . . . . . . . . 3 . Prototype ID Bank 9 | . 1 . 1 2 4 . 1 . . . . Open Door 5 | . . 1 . 3 . . . 1 . . . Branch Access Points 3 | . 1 . 1 . . . 1 . . . . Garrison Index 1 | . . . . . 1 . . . . . . Alert Level 4 | . . . 1 1 1 . 1 . . . . Unreport Threat 1 | . 1 . . . . . . . . . . Locate Traps 4 | . . . . 3 . . 1 . . . . Zone Layout 4 | . 1 . 2 1 . . . . . . . Fabricator Hacks . | . . . . . . . . . . . . Repair Station Hacks 5 | . . . 3 . . . 2 . . . . Scan Component 3 | . . . 2 . . . 1 . . . . Repair 2 | . . . 1 . . . 1 . . . . Recycling Unit Hacks 5 | . 1 . . 2 2 . . . . . . Retrieve Components 5 | . 1 . . 2 2 . . . . . . Scanalyzer . | . . . . . . . . . . . . Garrison Access Hacks 1 | . . . . 1 . . . . . . . Seal Access 1 | . . . . 1 . . . . . . . Unauthorized Hacks 8 | . 1 . . 2 4 . 1 . . . . Terminals 3 | . . . . . 2 . 1 . . . . Botnet 3 | . . . . . 2 . 1 . . . . Fabricators . | . . . . . . . . . . . . Repair Stations . | . . . . . . . . . . . . Recycling Units 5 | . 1 . . 2 2 . . . . . . Tunnel 5 | . 1 . . 2 2 . . . . . . Scanalyzers . | . . . . . . . . . . . . Garrison Access . | . . . . . . . . . . . . Data Cores Recovered 2 | . . . 1 1 . . . . . . . Used . | . . . . . . . . . . . . Hacking Detections 24 | . 3 . 5 6 6 . 4 . . . . Full Trace Events 3 | . . . 2 1 . . . . . . . Feedback Events . | . . . . . . . . . . . . Feedback Blocked . | . . . . . . . . . . . . Robot Schematics Acquired 4 | . . . . . . . . . . 4 . Robots Built . | . . . . . . . . . . . . Authchips . | . . . . . . . . . . . . Time . | . . . . . . . . . . . . Total Robot Build Rating . | . . . . . . . . . . . . Part Schematics Acquired 18 | . . . . . . . . . . 18 . Parts Built . | . . . . . . . . . . . . Authchips . | . . . . . . . . . . . . Time . | . . . . . . . . . . . . Total Part Build Rating . | . . . . . . . . . . . . Parts Repaired 2 | . . . 1 . . . 1 . . . . Time 120 | . . . 70 . . . 50 . . . . Parts Recycled . | . . . . . . . . . . . . Recycled Matter . | . . . . . . . . . . . . Retrieved Matter . | . . . . . . . . . . . . Retrieved Components 19 | . 1 . . 12 6 . . . . . . Parts Scanalyzed . | . . . . . . . . . . . . Part Schematics Acquired . | . . . . . . . . . . . . Parts Damaged . | . . . . . . . . . . . . Bothacking | -11 -10 -10 -9 -9 -9 -9 -6 -6 -6 -6 -6 ------------ Run | Yrd Mat Min Mat Sto Rec Scr Fac Low Low Zio Dee Used RIF Installer . | . . . . . . . . . . . . Robots Hacked . | . . . . . . . . . . . . Non-combat . | . . . . . . . . . . . . Combat . | . . . . . . . . . . . . Robot Hacks Applied . | . . . . . . . . . . . . Relay Couplers Released . | . . . . . . . . . . . . Fabnet Peak Effective % . | . . . . . . . . . . . . Robots Rewired 8 | . . . . . 8 . . . . . . Allies Hacked 1 | . . . . . . . 1 . . . . Hacks Repelled . | . . . . . . . . . . . . Allies | -11 -10 -10 -9 -9 -9 -9 -6 -6 -6 -6 -6 -------- Run | Yrd Mat Min Mat Sto Rec Scr Fac Low Low Zio Dee Total Allies 12 | . . . . . 8 . . . . 4 . Largest Group 8 | . . . . . 8 8 8 . . 4 4 Highest-Rated Group 186 | . . . . . 118 118 118 . . 186 186 Highest-Rated Ally 99 | . . . . . 27 27 27 . . 99 99 Total Orders 3 | . . . . . . . 3 . . . . STAY 2 | . . . . . . . 2 . . . . FOLLOW 1 | . . . . . . . 1 . . . . Ally Attacks 146 | . . . . . . . 34 . . . 112 Total Damage 7582 | . . . . . . . 508 . . . 7074 Kills 34 | . . . . . . . 4 . . . 30 Allies Corrupted 2 | . . . . . . . 2 . . . . Allies Melted . | . . . . . . . . . . . . Intel | -11 -10 -10 -9 -9 -9 -9 -6 -6 -6 -6 -6 ------- Run | Yrd Mat Min Mat Sto Rec Scr Fac Low Low Zio Dee Active Infowar (turns) 865 | . 117 . 748 . . . . . . . . Optics 748 | . . . 748 . . . . . . . . T.N.C. 117 | . 117 . . . . . . . . . . Robot Analysis Total . | . . . . . . . . . . . . Derelict Logs Recovered 2 | . . . . . . . . . 1 1 . Drone Launches . | . . . . . . . . . . . . Drone Recoveries . | . . . . . . . . . . . . Exploration | -11 -10 -10 -9 -9 -9 -9 -6 -6 -6 -6 -6 ------------- Run | Yrd Mat Min Mat Sto Rec Scr Fac Low Low Zio Dee Turns Passed 9782 | 61 790 330 1119 1042 1011 663 1396 493 278 1597 1002 Spaces Moved 6197 | 46 346 130 524 608 714 516 917 406 235 1005 750 Core 188 | 13 . . . . . . . . . . 175 Treads 13 | . 7 . 6 . . . . . . . . Legs 5996 | 33 339 130 518 608 714 516 917 406 235 1005 575 Wheels . | . . . . . . . . . . . . Hover . | . . . . . . . . . . . . Flight . | . . . . . . . . . . . . Fastest Speed 50 | 50 120 120 120 120 120 120 116 116 116 116 50 Average Speed 117 | 100 121 152 123 120 120 120 119 116 116 117 100 Slowest Speed 260 | 120 190 260 240 120 120 120 232 116 116 186 185 Overloaded Moves 5 | . . . . . . . 5 . . . . Propulsion Burnouts . | . . . . . . . . . . . . Robots Hopped . | . . . . . . . . . . . . Potential Cave-ins . | . . . . . . . . . . . . Cave-ins Triggered . | . . . . . . . . . . . . Exploration Rate (%) 53 | 4 54 28 35 89 98 49 18 59 48 84 75 Regions Visited 11 Branch Regions 8 Pre-discovered Areas 7 | . 1 . . 2 2 . . . . 2 . Known Exits Taken 3 | . 1 . 1 . . . 1 . . . . Unknown Exits Taken 8 | 1 . 1 . 1 1 1 . 1 1 1 . Scrap Searched 9 | . . . . . . 2 . 4 1 2 . Spaces Dug 14 | . . . . . . . 14 . . . . Terrain Destroyed 47 | . . . . . . . 21 11 13 . 2 Melee . | . . . . . . . . . . . . Projectile 2 | . . . . . . . . . . . 2 AOE 45 | . . . . . . . 21 11 13 . . Terrain Rammed . | . . . . . . . . . . . . Walls Destroyed . | . . . . . . . . . . . . Machines Disabled . | . . . . . . . . . . . . Actions | -11 -10 -10 -9 -9 -9 -9 -6 -6 -6 -6 -6 --------- Run | Yrd Mat Min Mat Sto Rec Scr Fac Low Low Zio Dee Total 8046 | 58 603 246 801 792 843 560 1131 420 239 1425 928 Wait 1157 | . 164 99 139 71 79 38 93 1 . 378 95 Move 6186 | 45 345 129 523 607 713 515 916 405 234 1004 750 Hop . | . . . . . . . . . . . . Pick Up 60 | 7 8 . 7 5 1 5 19 1 1 4 2 Fast Attach 46 | 5 3 2 4 2 . . 9 1 . 13 7 Attach 33 | 1 2 1 5 . . . 12 . . 4 8 Detach 4 | . . . . . . . 1 . . 2 1 Swap 75 | . 7 4 15 15 1 1 20 3 2 2 5 Drop 102 | . 11 3 8 17 1 1 23 4 1 17 16 Fire 332 | . 58 8 98 68 12 . 38 4 1 1 44 Melee . | . . . . . . . . . . . . Ram . | . . . . . . . . . . . . Kick 17 | . 5 . 2 7 3 . . . . . . Crush . | . . . . . . . . . . . . Escape Stasis . | . . . . . . . . . . . . Rewire 34 | . . . . . 33 . . 1 . . . Trap . | . . . . . . . . . . . . Miscellaneous . | . . . . . . . . . . . . Route ------- -11/Scrapyard -10/Materials (discovered 3 exits: *Mat x2 / *Min) -10/Mines -9/Materials (discovered 3 exits: [*Mat] / Min / *Sto) -9/Storage (discovered 2 exits: [*Mat] / *Rec) -9/Recycling (discovered 2 exits: [*Fac] / [*Scr]) -9/Scraptown -6/Factory (discovered 3 exits: [*Fac] / *Low x2) -6/Lower Caves -6/Lower Caves (discovered 2 exits: [*Fac] / *Zio) -6/Zion (discovered 2 exits: [*Dee] / [*Pro]) -6/Deep Caves History --------- Turn | Location | Event 2 | -11/Scrapyard | Met Revision 17 6 | -11/Scrapyard | Discovered new exit (range 15) 62 | -11/Scrapyard | Entered Materials 269 | -10/Materials | Discovered new exit (range 15) 328 | -10/Materials | Build established: Mutant 505 | -10/Materials | Identified exit to Mines 691 | -10/Materials | Discovered new exit (range 16) 746 | -10/Materials | Core integrity fell below 50% 852 | -10/Materials | Entered Mines 863 | -10/Mines | Met a Derelict who couldn't figure out how to use a Trap Extractor 918 | -10/Mines | Assembled infested the area 1054 | -10/Mines | Core integrity fell below 20% 1178 | -10/Mines | Discovered new exit (range 5) 1182 | -10/Mines | Entered Materials 1182 | -9/Materials | Evolved 2 slots: Propulsion x1, Utility x1 1294 | -9/Materials | Repaired Broken Beamcaster 2104 | -9/Materials | Discovered new exit (range 6) 2158 | -9/Materials | Identified exit to Mines 2158 | -9/Materials | Identified exit to Storage 2258 | -9/Materials | Build established: Scavenger-Mutant 2301 | -9/Materials | Entered Storage 2893 | -9/Storage | Discovered new exit (range 16) 3340 | -9/Storage | Used back door to open Recycling access 3340 | -9/Storage | Discovered new exit (range 4) 3343 | -9/Storage | Entered Recycling 3344 | -9/Recycling | Joined Warlord attack on 0b10 via Recycling 3452 | -9/Recycling | Discovered new exit (range 5) 3527 | -9/Recycling | Build established: Mutant 4145 | -9/Recycling | Scanned before Scraplab entrance 4315 | -9/Recycling | Entered Scraplab 4324 | -9/Recycling | Discovered new exit (range 3) 4354 | -9/Recycling | Entered Scraptown 4354 | -9/Scraptown | Accompanied by 8 allies 4515 | -9/Scraptown | Build established: Commander-Mutant 4562 | -9/Scraptown | Heard Great Nut preacher, LISTEN AND RECITE! 4702 | -9/Scraptown | Visited Comm Corps 4809 | -9/Scraptown | Visited Red Mages 4859 | -9/Scraptown | Visited CPS Storage 4907 | -9/Scraptown | Visited SPCMW 4925 | -9/Scraptown | Visited Awakened 4972 | -9/Scraptown | Discovered new exit (range 5) 5017 | -9/Scraptown | Entered Factory 5017 | -6/Factory | Accompanied by 8 allies 5017 | -6/Factory | Evolved 6 slots: Propulsion x1, Utility x3, Weapon x2 5113 | -6/Factory | Repaired Beamcaster 5303 | -6/Factory | Build established: Commander-Gunner 5431 | -6/Factory | Discovered new exit (range 15) 5455 | -6/Factory | Lost 4 allies 5520 | -6/Factory | Identified exit to Lower Caves 5706 | -6/Factory | Discovered new exit (range 8) 5731 | -6/Factory | Build established: Scavenger-Gunner 5783 | -6/Factory | Lost 4 allies 5818 | -6/Factory | Lost 7 parts (1p2n1u3w) 6413 | -6/Factory | Entered Lower Caves 6490 | -6/Lower Caves | Encountered a Warlord checkpoint 6573 | -6/Lower Caves | Build established: Gunner 6613 | -6/Lower Caves | Found Prototype Device 6893 | -6/Lower Caves | Discovered new exit (range 12) 6906 | -6/Lower Caves | Entered another Lower Caves area 6917 | -6/Lower Caves | Discovered new exit (range 9) 6975 | -6/Lower Caves | Learned Factory garrison access intel 6980 | -6/Lower Caves | Encountered a Warlord checkpoint 7154 | -6/Lower Caves | Discovered new exit (range 15) 7184 | -6/Lower Caves | Entered Zion 7319 | -6/Zion | Discovered new exit (range 10) 7458 | -6/Zion | Found Prototype Special Weapon 7458 | -6/Zion | Identified RU-N14's Throwing Claymores 7466 | -6/Zion | Found RU-N14's Throwing Claymores 7468 | -6/Zion | Found RU-N14's Throwing Claymores 7589 | -6/Zion | Identified Heart of Steel 7604 | -6/Zion | Found Prototype Device 7604 | -6/Zion | Identified Mobile Refinery Mk. CCLXVII 7758 | -6/Zion | Build established: Tank 7981 | -6/Zion | Heart of Steel transformed into Warbot 8082 | -6/Zion | Learned location of Armory (-4) 8125 | -6/Zion | Learned location of 1 exit from Factory 8180 | -6/Zion | Acquired unknown access codes intercepted by a Zionite 8320 | -6/Zion | Found Prototype Energy Gun 8320 | -6/Zion | Identified Storm Laser 8507 | -6/Zion | Met Imprinter 8625 | -6/Zion | Gained Derelict followers 8739 | -6/Zion | Opened final containment barrier to the Deep Caves 8759 | -6/Zion | Discovered new exit (range 3) 8759 | -6/Zion | Saw the warning signs outside the Deep Caves entrance 8781 | -6/Zion | Entered Deep Caves 8781 | -6/Deep Caves | Accompanied by 4 allies (Warbot) 8980 | -6/Deep Caves | Z-Facility disabled 8986 | -6/Deep Caves | Attacked by Z-Imprinter 8998 | -6/Deep Caves | Allies destroyed Z-Imprinter 9030 | -6/Deep Caves | Found Prototype Protection 9030 | -6/Deep Caves | Identified Zio. Weapon Casing 9041 | -6/Deep Caves | Found Prototype Device 9041 | -6/Deep Caves | Identified Zio. Metafield Generator 9060 | -6/Deep Caves | Found Zio. Weapon Casing 9529 | -6/Deep Caves | Spotted AG-21899 9583 | -6/Deep Caves | Core integrity fell below 50% 9590 | -6/Deep Caves | Destroyed AG-21899 9590 | -6/Deep Caves | Exposed GOLEM chamber 9591 | -6/Deep Caves | Triggered Deep Caves wall 9618 | -6/Deep Caves | Spotted AS-18306 9625 | -6/Deep Caves | Destroyed AS-18306 9632 | -6/Deep Caves | Spotted AS-44327 9634 | -6/Deep Caves | Destroyed AS-44327 9647 | -6/Deep Caves | Spotted AG-16493 9684 | -6/Deep Caves | Found GOLEM Unit 9688 | -6/Deep Caves | Core integrity fell below 20% 9699 | -6/Deep Caves | Destroyed 37 combat bots 9718 | -6/Deep Caves | Lost 3 parts (3n) 9783 | -6/Deep Caves | Destroyed by AG-16493 with Assembled Focal Cannon Last Messages --------------- 09678_ AG-46833 destroyed. 09679_ GOLEM Unit springs to life. 09680_ AG-85092 GOLEM Unit beginning Prototype Leg integration. 09680_ AG-85092 suffers critical hit (Destroy). 09680_ AG-85092 destroyed. 09680_ Arm. Leg destroyed. 09680_ Acquired 25 matter. 09683_ AG-64292 destroyed. 09684_ Acquired GOLEM Unit. 09685_ GOLEM Unit beginning Asb. Alloy Leg integration. 09687_ Arm. Leg destroyed. 09687_ Multireflex Exoskeleton destroyed. 09688_ Dropped Lrg. Storage Unit. 09689_ Dropped Storm Laser. 09689_ Dropped Cold Fusion Reactor. 09690_ Dropped Hvy. Plasma Cannon. 09694_ AG-26716 destroyed. 09711_ Acquired 10 matter. Map ----- +----------------------------------------------------+ | | | | | | | | | | | | | | | | | | | | | | | | | | | | | | | | | | | | | ?????????????????????????????????????????????????? | | ??###?????????????????####???????????????????####? | | ?## #???????????????## ####??????????####### ## | | ?# #?????########## ###???????? ? | | ?# #????# ##??????# #???# | | ???# ##??# ###### ##?????# #???## | | ????# #### ##???# ##????# #????## | | ?????# ##??## @### ##?### #?????# # | | ?????# #??## ##?## ### # ####### # | | ?????# #### #???# # | | ?????## ### #???# # | | ??????### ### ##??# ############# | | ???????## ### #??# #???????????? | | ??????## ## #??## #???????????? | | ?????## #???## #??????????? | | ???### ##????### #?????????? | | ???# ### #??????### #????????? | | ???# ## #?# ##????? ### ????????? | | ???# #######?# ##????? ### ???????? | | ???## ##???????## ##?????? ##? ??????? | | #???####????????##G #####?? #?# ?????? | | ????????????##### #?# ##?# ??????? | | ??????####### " ## #?? ????? | | ##??# """%# #?? ???? | | ???# "" #??? ???? | | ????? ###### % #??? ???? | | #???? #????# #??? ???? | | #???# #????# ## #??????# ????? | | #???# #???# #?## #####?????## ????? | | #???# #???# ???## ##????????## ????? | | #???# #??# ?????## ##?????????? #????? | | #???# #??# #??????## ##???????????? #????? | +----------------------------------------------------+ Best States ------------- Heat Dissipation 127 Energy Generation 27 Energy Capacity 280 Matter Stores 300 Matter Capacity 300 Sight Range 18 Terrain Scan Density 10 Base Temperature (-) 150 Armor Coverage 625 Weapon Shielding 100 Weapon Cycling 15 Evasion (%) 55 Targeting Accuracy 8 Recoil Reduction 1 Offensive Hacking 10 Item Schematics ----------------- Lrn. Tractor Beam | -6/Zion | Archive Adv. Sensor Array | -6/Zion | Archive Adv. Cooling System | -6/Zion | Archive Force Field | -6/Zion | Archive Imp. Dynamic Insulation System | -6/Zion | Archive Lgt. Angular Momentum Engine | -6/Zion | Archive Adv. Thermal Generator | -6/Zion | Archive Antimatter Reactor | -6/Zion | Archive Adv. Heat Sink | -6/Zion | Archive Lrn. Proton Cannon | -6/Zion | Archive Nuclear Pulse Thruster | -6/Zion | Archive Point Defense System | -6/Zion | Archive EM Shield | -6/Zion | Archive Adv. Drone Bay | -6/Zion | Archive Imp. System Shield | -6/Zion | Archive Riot Gun | -6/Zion | Free Hvy. Riot Gun | -6/Zion | Free Beamcaster | -6/Zion | Free Robot Schematics ------------------ A-02 Transporter | -6/Zion | Archive R-06 Scavenger | -6/Zion | Archive K-01 Serf | -6/Zion | Archive G-73 Enforcer | -6/Zion | Archive Fabricated ------------ Nothing Repaired ---------- Beamcaster | 33% | -9/Materials | Broken Beamcaster | 22% | -6/Factory Alien Tech Used ----------------- None Achievements -------------- None Challenges ------------ None Game ------ Seed HypervelocityColdMultitool Manual? 0 Play Time 01:16:59 Cumulative 310.1 hours Start 2025.07.09 @ 22:26:10 End 2025.07.09 @ 23:40:18 Sessions 1 Manual Loads 0 Difficulty Rogue Special Mode None Game No. 155 Rogue 155 Adventurer 0 Explorer 0 Win Type - Total 6 Types 4/0/1/0/0/0/0/0/0/1 Lore% 81 Gallery% 80 Achievement% 66 Wizard Run 0 Options --------- Layout 1 ASCII 0 Keyboard 0 Movement Mouse Keybinds 0 Fullscreen 1 Font 24/Smallcaps Map View 50x35 Zoom Use 0% Tactical HUD 1 Map Filters NONE Filters NONE Steam 1 RUN: 6ab18774-dd90-4877-9c83-7f2f358eb876